Cogmind - Beta 17.1 @@@ ROGUE MODE // 2026.09.21 @ 23:39:35 Player: deadbabe Result: Destroyed by G-47 Trooper with Particle Gun Performance ------------- Evolutions (2) 1000 Regions Visited (6) 1200 Robots Destroyed (30) 150 Value Destroyed (556) 556 Prototype IDs (0) 0 Alien Tech Used (0) 0 Bonus (7) 7 TOTAL SCORE: 2913 Bonus ------- Follower Combat Kills 7 Cogmind --------- Core Integrity 0/550 Matter 290/300 Energy 100/100 System Corruption 8% Temperature Cool (45) Movement Core (50) Location -8/Materials Parts ------- > --- POWER (1) -------- (None) > --- PROPULSION (4) --- (None) > --- UTILITY (4) ------ (None) > --- WEAPON (2) ------- (None) > --- INVENTORY (5) ---- Aluminum Leg Small Matter Pod (50) Hardened Light Armor Plating Shock Bomb Launcher Mining Laser Peak State ------------ > --- POWER ------------ Light Ion Engine > --- PROPULSION ------- Wheel Wheel Wheel > --- UTILITY ---------- Small Storage Unit Improved Terrain Scanner Hardened Light Armor Plating > --- WEAPON ----------- Light Assault Rifle Light Assault Rifle > --- INVENTORY -------- Wheel Small Matter Pod Mini Grenade Launcher Mining Laser [Rating: 12] Favorites ----------- Power Light Ion Engine Engine Light Ion Engine Power Core Micro Nuclear Core Propulsion Flight Unit Treads Light Treads Leg Aluminum Leg Wheel Wheel Flight Unit Flight Unit Utility Small Storage Unit Device Improved Terrain Scanner Storage Small Storage Unit Protection Hardened Light Armor Plating Weapon Light Assault Rifle Energy Gun Small Laser Ballistic Gun Light Assault Rifle Launcher Mini Grenade Launcher Impact Weapon Hammer Build | -11 -10 -9 -9 -9 -8 -8 ------- Run | Yrd Mat Mat Min Exi Min Mat Slots Evolved 4 | . . 2 . . . 2 Power . | . . . . . . . Propulsion 2 | . . 1 . . . 1 Utility 2 | . . 1 . . . 1 Weapon . | . . . . . . . Parts Attached 32 | 9 2 9 8 . 2 2 Power 4 | 1 . . 2 . . 1 Engine 3 | 1 . . 2 . . . Core 1 | . . . . . . 1 Reactor . | . . . . . . . Propulsion 15 | 4 1 6 2 . 1 1 Treads 1 | . . . . . . 1 Leg 2 | 2 . . . . . . Wheel 4 | 2 1 1 . . . . Hover . | . . . . . . . Flight 8 | . . 5 2 . 1 . Utility 4 | 2 . 1 1 . . . Device 1 | 1 . . . . . . Storage 1 | 1 . . . . . . Processor . | . . . . . . . Hackware . | . . . . . . . Protection 2 | . . 1 1 . . . Artifact . | . . . . . . . Weapon 9 | 2 1 2 3 . 1 . Energy Gun 1 | 1 . . . . . . Energy Cannon . | . . . . . . . Ballistic Gun 6 | 1 1 2 2 . . . Ballistic Cannon . | . . . . . . . Launcher 1 | . . . 1 . . . Special Weapon . | . . . . . . . Impact Weapon 1 | . . . . . 1 . Slashing Weapon . | . . . . . . . Piercing Weapon . | . . . . . . . Special Melee Weapon . | . . . . . . . Unidentified Prototypes . | . . . . . . . Parts Lost 17 | . . 2 2 . 3 10 Power 3 | . . . 1 . 1 1 Propulsion 7 | . . 2 . . 1 4 Utility 2 | . . . 1 . . 1 Weapon 5 | . . . . . 1 4 Highest Loss Streak 6 | . . 2 1 . 3 6 To Critical Strikes . | . . . . . . . Average Backups 5 | . 3 3 7 8 7 7 Power . | . . . . . . . Propulsion 1 | . 2 1 2 2 2 1 Utility 1 | . . . 2 2 2 2 Weapon 2 | . 1 1 3 4 3 3 Tool/Special . | . . . . . . . Unused Backups 5 | . . . . . . 5 Power 1 | . . . . . . 1 Propulsion 1 | . . . . . . 1 Utility 1 | . . . . . . 1 Weapon 2 | . . . . . . 2 Tool/Special . | . . . . . . . Average Slot Usage (%) 79 | . 100 90 80 77 64 45 Engine 8 | . 14 11 10 11 2 . Wheel 10 | . 28 22 . . . . Flight 18 | . . 8 33 33 28 15 Device 6 | . 14 11 4 . . . Storage 11 | . 14 11 11 11 11 8 Protection 1 | . . 5 . . . . Ballistic Gun 19 | . 21 22 21 22 14 8 Impact Weapon 1 | . . . . . 7 8 Peak Build Rating 12 | 9 9 12 11 8 8 11 Average Rating 8 | 4 8 10 8 8 6 7 On Entrance 7 | . 9 9 11 8 8 7 Avg Prop Armor Cover (%) 5 | . . . . . . 5 Naked Turns . | . . . . . . . Heaviest Build 16 | 11 11 16 11 10 10 14 Greatest Support 30 | 20 20 30 12 12 12 20 Greatest Overweight (x) 3 | . . 3 . . . 3 Average Overweight (x) . | . . . . . . . Largest Inventory Capacity 8 | 8 8 8 8 8 8 8 Average Capacity 7 | 6 8 8 8 8 8 7 Most Carried 8 | 3 3 8 8 8 8 8 Average Carried 5 | . 3 3 7 8 7 7 Final Capacity 8 | 8 8 8 8 8 8 5 Final Carried 8 | 3 3 8 8 8 8 5 Class Distribution -------------------- 68% | Scavenger-Mutant 31% | Mutant Dominant Class ---------------- Mutant | -10/Materials Scavenger-Mutant | -9/Materials Scavenger-Mutant | -9/Mines Scavenger-Mutant | -9/Exiles Scavenger-Mutant | -8/Mines Mutant | -8/Materials Resources | -11 -10 -9 -9 -9 -8 -8 ----------- Run | Yrd Mat Mat Min Exi Min Mat Matter Collected 749 | 125 40 202 274 . 70 38 Remotely . | . . . . . . . Salvage Created 686 | 47 40 219 97 . 145 138 Parts 52 | 5 6 19 11 . 5 6 Haulers Intercepted . | . . . . . . . Recyclers Shooed . | . . . . . . . Parts Field Recycled . | . . . . . . . Retrieved Matter . | . . . . . . . Parts Self-Destructed . | . . . . . . . Prevented . | . . . . . . . Parts Restored . | . . . . . . . Kills | -11 -10 -9 -9 -9 -8 -8 ------- Run | Yrd Mat Mat Min Exi Min Mat Combat Hostiles Destroyed 27 | . 3 10 8 . 3 3 Melee 2 | . . . . . 2 . Guns 21 | . 3 10 6 . 1 1 AOE 4 | . . . 2 . . 2 Classes Destroyed 6 | 1 1 3 . . . 1 Worker 1 | . . 1 . . . . Tunneler 2 | 2 . . . . . . Swarmer 19 | . 3 8 8 . . . Grunt 5 | . . 1 . . 3 1 Brawler 1 | . . . . . . 1 Sentry 2 | . . 1 . . . 1 Best Kill Streak 8 | 2 2 5 8 . 3 2 Combat Bots Only 8 | . 2 5 8 . 3 2 Max Kills in Single Turn 2 | 2 1 1 2 . 1 1 Gunslinging . | . . . . . . . Exploded 2 | . . . 2 . . 1 Melee 1 | . . . . . 1 . Uniques/NPCs Destroyed . | . . . . . . . Combat | -11 -10 -9 -9 -9 -8 -8 -------- Run | Yrd Mat Mat Min Exi Min Mat Hostile Shots Fired 229 | . 14 77 18 . 35 85 Missed 80 | . 4 29 7 . 12 28 Hits 149 | . 10 48 11 . 23 57 Melee 9 | . . . . . . 9 Projectile 140 | . 10 48 11 . 23 48 Critical Strikes 3 | . . . . . . 3 Damage Taken 2040 | . 78 430 84 . 382 1066 Core 842 | . 22 93 31 . 145 551 Absorbed by Shields . | . . . . . . . Core Remaining (%) 74 | 100 91 . . . 32 . Volleys Fired 87 | 2 10 37 15 . 13 10 Largest 2 | 2 2 2 2 . 2 1 Hottest 60 | 60 60 40 40 . 40 30 Shots Fired 160 | 4 20 74 28 . 24 10 Gun 156 | 4 20 74 27 . 23 8 Cannon . | . . . . . . . Launcher 4 | . . . 1 . 1 2 Special . | . . . . . . . Kinetic 144 | 2 10 74 27 . 23 8 Thermal 12 | 2 10 . . . . . Explosive 4 | . . . 1 . 1 2 Electromagnetic . | . . . . . . . Robot Hit Streak 17 | 1 2 6 8 . 17 7 Robot Miss Streak 5 | 1 5 5 2 . 2 1 Penetration Max . | . . . . . . . Secondary Targets . | . . . . . . . Shots Hit Robots 110 | 2 7 40 17 . 29 15 Core Hits 55 | 2 4 18 11 . 13 7 Critical Kills 2 | . . 1 . . 1 . Critical Parts Destroyed 3 | . . . 1 . 1 1 Critical Strikes 5 | . . 1 1 . 2 1 Destroy 2 | . . 1 1 . . . Smash 3 | . . . . . 2 1 Melee Attacks 16 | . . . . . 9 7 Impact 16 | . . . . . 9 7 Slashing . | . . . . . . . Piercing . | . . . . . . . Sneak Attacks 1 | . . . . . 1 . Combat Hostiles . | . . . . . . . Follow-up Attacks . | . . . . . . . Damage Inflicted 1578 | 31 55 348 232 . 465 447 Guns 784 | 31 55 348 138 . 152 60 Cannons . | . . . . . . . Explosions 431 | . . . 94 . 72 265 Melee 363 | . . . . . 241 122 Ramming . | . . . . . . . Kinetic 748 | 19 31 348 138 . 152 60 Thermal 36 | 12 24 . . . . . Explosive 431 | . . . 94 . 72 265 Electromagnetic . | . . . . . . . Impact 363 | . . . . . 241 122 Slashing . | . . . . . . . Piercing . | . . . . . . . Highest Corruption 8 | . . . . . . 8 Average Corruption 7 | . . . . . . 7 Corruption Purged . | . . . . . . . Corruption Blocked . | . . . . . . . Effects 1 | . . . . . . 1 Parts Rejected 1 | . . . . . . 1 Overload Shots . | . . . . . . . Overflow Damage 112 | . . . . . 86 26 Projectiles . | . . . . . . . Explosions 2 | . . . . . . 2 Melee 110 | . . . . . 86 24 Knockbacks . | . . . . . . . Impact . | . . . . . . . Kinetic . | . . . . . . . Secondary . | . . . . . . . Self-Inflicted Damage 62 | . . . . . . 62 Shots 2 | . . . . . . 2 Rammed . | . . . . . . . Targets Rammed . | . . . . . . . Kicked . | . . . . . . . Crushed . | . . . . . . . Highest Temperature 40 | 20 40 8 6 . 18 20 Average Temperature 8 | 15 20 4 3 . 7 9 Received Heat Transfer 654 | . . 24 . . 207 423 Siege Activations . | . . . . . . . Martial Activations . | . . . . . . . Shielding Activations . | . . . . . . . Robots Disrupted . | . . . . . . . Combat Hostiles . | . . . . . . . Robots Corrupted . | . . . . . . . Combat Hostiles . | . . . . . . . Parts Fried . | . . . . . . . Impact Corruptions 3 | . . . . . 2 1 Robots Melted . | . . . . . . . Combat Hostiles . | . . . . . . . Parts Melted . | . . . . . . . Heat Transferred 75 | 25 50 . . . . . Parts Sabotaged . | . . . . . . . Parts Stolen . | . . . . . . . Parts Stripped . | . . . . . . . Power Chain Reactions . | . . . . . . . Alert | -11 -10 -9 -9 -9 -8 -8 ------- Run | Yrd Mat Mat Min Exi Min Mat Maximum Alert Level . | . . . . . . . Low Security (%) 100 | 100 100 100 100 . 100 100 Level 1 . | . . . . . . . Level 2 . | . . . . . . . Level 3 . | . . . . . . . Level 4 . | . . . . . . . Level 5 . | . . . . . . . High Security . | . . . . . . . Max Security . | . . . . . . . Peak Influence 196 | 10 65 155 196 . 40 55 Initial 56 | . . 16 56 . . 3 Average 60 | . 43 34 155 . 21 20 Influence Increases 848 | 10 100 260 244 . 79 155 Destroy 0b10 Robot/C 560 | . 60 200 180 . 60 60 Destroy 0b10 Robot/NC 15 | 10 . 5 . . . . Destroy Leader 110 | . 10 40 30 . 10 20 Allied During Kill 8 | . . . 8 . . . Destroy Structure 35 | . . . 11 . 9 15 Partial Spotted 45 | . 15 15 . . . 15 Lose Combat Pursuer 75 | . 15 . 15 . . 45 Influence Decreases 808 | 10 60 155 249 140 69 125 Entered New Map 260 | . . 24 89 140 . 7 Time Decay 384 | 10 60 111 120 . 40 43 Lost Part 144 | . . 20 20 . 29 75 Lost Ally 20 | . . . 20 . . . Squads Dispatched 2 | . . 1 . . . 1 Investigation . | . . . . . . . Extermination . | . . . . . . . Reinforcement 2 | . . 1 . . . 1 Assault . | . . . . . . . Garrison . | . . . . . . . Intercept . | . . . . . . . Searches Triggered . | . . . . . . . Construction Impeded . | . . . . . . . Haulers Reinforced . | . . . . . . . Active Scanning Responses . | . . . . . . . Cargo Convoy Interrupts . | . . . . . . . Stealth | -11 -10 -9 -9 -9 -8 -8 --------- Run | Yrd Mat Mat Min Exi Min Mat Distress Signals 1 | . . . 1 . . . Communications Jammed . | . . . . . . . Distress Signals . | . . . . . . . Times Spotted 44 | . 5 17 8 . 3 11 Peak Tracking Total 8 | . 3 7 4 . 3 8 Tactical Retreats 4 | . 1 . 1 . . 2 Traps | -11 -10 -9 -9 -9 -8 -8 ------- Run | Yrd Mat Mat Min Exi Min Mat Traps Triggered . | . . . . . . . Indirectly . | . . . . . . . Trap Hack Attempts . | . . . . . . . Triggered . | . . . . . . . Disarmed . | . . . . . . . Reprogrammed . | . . . . . . . Reused . | . . . . . . . Traps Extracted . | . . . . . . . Installed . | . . . . . . . Triggered . | . . . . . . . Machines | -11 -10 -9 -9 -9 -8 -8 ---------- Run | Yrd Mat Mat Min Exi Min Mat Machines Disabled . | . . . . . . . Max in Single Turn . | . . . . . . . Garrison Access 1 | . . . . . . 1 Machines Repaired . | . . . . . . . Machines Dismantled . | . . . . . . . Machines Sabotaged . | . . . . . . . Overloaded Fab Kills . | . . . . . . . Hacking | -11 -10 -9 -9 -9 -8 -8 --------- Run | Yrd Mat Mat Min Exi Min Mat Machines Accessed 6 | . 1 2 . 1 . 2 Terminals 3 | . 1 1 . . . 1 Fabricators . | . . . . . . . Repair Stations . | . . . . . . . Recycling Units . | . . . . . . . Scanalyzers 1 | . . 1 . . . . Garrison Access 1 | . . . . . . 1 Total Hacks 9 | . 1 5 . 1 . 2 Successful 4 | . . 1 . 1 . 2 Failed 4 | . 1 3 . . . . Catastrophic . | . . . . . . . Database Lockouts 1 | . . 1 . . . . Manual 2 | . . 2 . . . . Terminals 4 | . 1 2 . . . 1 Fabricators . | . . . . . . . Repair Stations . | . . . . . . . Recycling Units . | . . . . . . . Scanalyzers 3 | . . 3 . . . . Garrison Access 1 | . . . . . . 1 Terminal Hacks 2 | . . . . 1 . 1 Record 1 | . . . . 1 . . Alert Level 1 | . . . . . . 1 Fabricator Hacks . | . . . . . . . Repair Station Hacks . | . . . . . . . Recycling Unit Hacks . | . . . . . . . Scanalyzer 1 | . . 1 . . . . Retrieve Study 1 | . . 1 . . . . Garrison Access Hacks 1 | . . . . . . 1 Seal Access 1 | . . . . . . 1 Unauthorized Hacks . | . . . . . . . Terminals . | . . . . . . . Fabricators . | . . . . . . . Repair Stations . | . . . . . . . Recycling Units . | . . . . . . . Scanalyzers . | . . . . . . . Garrison Access . | . . . . . . . Data Cores Recovered . | . . . . . . . Used . | . . . . . . . Hacking Detections 4 | . 1 2 . . . 1 Full Trace Events . | . . . . . . . Feedback Events . | . . . . . . . Feedback Blocked . | . . . . . . . Robot Schematics Acquired . | . . . . . . . Robots Built . | . . . . . . . Authchips . | . . . . . . . Time . | . . . . . . . Total Robot Build Rating . | . . . . . . . Part Schematics Acquired . | . . . . . . . Parts Built . | . . . . . . . Authchips . | . . . . . . . Time . | . . . . . . . Total Part Build Rating . | . . . . . . . Part Studies Acquired 1 | . . 1 . . . . Parts Repaired . | . . . . . . . Time . | . . . . . . . Parts Recycled . | . . . . . . . Recycled Matter . | . . . . . . . Retrieved Matter . | . . . . . . . Retrieved Components . | . . . . . . . Parts Scanalyzed . | . . . . . . . Part Schematics Acquired . | . . . . . . . Parts Damaged . | . . . . . . . Bothacking | -11 -10 -9 -9 -9 -8 -8 ------------ Run | Yrd Mat Mat Min Exi Min Mat Used RIF Installer . | . . . . . . . Robots Hacked . | . . . . . . . Non-combat . | . . . . . . . Combat . | . . . . . . . Robot Hacks Applied . | . . . . . . . Relay Couplers Released . | . . . . . . . Fabnet Peak Effective % . | . . . . . . . Robots Rewired . | . . . . . . . Allies Hacked . | . . . . . . . Hacks Repelled . | . . . . . . . Allies | -11 -10 -9 -9 -9 -8 -8 -------- Run | Yrd Mat Mat Min Exi Min Mat Total Allies 1 | . . . 1 . . . Largest Group 1 | . . . 1 . . . Highest-Rated Group 31 | . . . 31 . . . Highest-Rated Ally 31 | . . . 31 . . . Total Orders . | . . . . . . . Ally Attacks 9 | . . . 9 . . . Total Damage 42 | . . . 42 . . . Kills 1 | . . . 1 . . . Allies Corrupted . | . . . . . . . Allies Melted . | . . . . . . . Intel | -11 -10 -9 -9 -9 -8 -8 ------- Run | Yrd Mat Mat Min Exi Min Mat Active Infowar (turns) 513 | 5 132 291 85 . . . Terrain 513 | 5 132 291 85 . . . Robot Analysis Total . | . . . . . . . Derelict Logs Recovered 1 | . . . 1 . . . Drone Launches . | . . . . . . . Drone Recoveries . | . . . . . . . Exploration | -11 -10 -9 -9 -9 -8 -8 ------------- Run | Yrd Mat Mat Min Exi Min Mat Turns Passed 1020 | 72 132 291 247 47 125 106 Spaces Moved 1424 | 58 125 245 560 139 173 124 Core 8 | 7 . . . . . 1 Treads 3 | . . . . . . 3 Legs 9 | 9 . . . . . . Wheels 338 | 42 125 171 . . . . Hover . | . . . . . . . Flight 1066 | . . 74 560 139 173 120 Fastest Speed 34 | 50 80 34 34 34 34 37 Average Speed 48 | 82 80 72 34 34 34 49 Slowest Speed 285 | 120 80 285 34 34 37 280 Overloaded Moves . | . . . . . . . Propulsion Burnouts . | . . . . . . . Robots Hopped 7 | . . . 4 . 3 . Potential Cave-ins . | . . . . . . . Cave-ins Triggered . | . . . . . . . Exploration Rate (%) 33 | 4 32 22 87 48 27 16 Regions Visited 6 Branch Regions 3 Pre-discovered Areas 2 | . . . 1 1 . . Known Exits Taken . | . . . . . . . Unknown Exits Taken 6 | 1 1 1 1 1 1 . Scrap Searched 3 | . . . 2 . 1 . Spaces Dug . | . . . . . . . Terrain Destroyed 45 | . . . 16 . 10 19 Melee . | . . . . . . . Projectile . | . . . . . . . AOE 45 | . . . 16 . 10 19 Terrain Rammed . | . . . . . . . Walls Destroyed . | . . . . . . . Machines Disabled . | . . . . . . . Actions | -11 -10 -9 -9 -9 -8 -8 --------- Run | Yrd Mat Mat Min Exi Min Mat Total 1586 | 75 138 296 594 138 198 147 Wait 2 | . 1 1 . . . . Move 1404 | 57 124 244 551 138 166 124 Hop 7 | . . . 4 . 3 . Pick Up 14 | 5 . 2 4 . 2 1 Fast Attach 16 | 7 1 4 2 . . 2 Attach 9 | 2 . 1 1 . 2 3 Detach 2 | . . 1 1 . . . Swap 14 | . 1 4 6 . 3 . Drop 15 | 2 1 2 10 . . . Fire 87 | 2 10 37 15 . 13 10 Melee 16 | . . . . . 9 7 Ram . | . . . . . . . Kick . | . . . . . . . Crush . | . . . . . . . Escape Stasis . | . . . . . . . Rewire . | . . . . . . . Trap . | . . . . . . . Miscellaneous . | . . . . . . . Route ------- -11/Scrapyard -10/Materials -9/Materials -9/Mines (discovered 3 exits: *Mat x2 / *Exi) -9/Exiles -8/Mines -8/Materials (discovered 1 exit: Fac) History --------- Turn | Location | Event 11 | -11/Scrapyard | Discovered new exit (range 15) 73 | -11/Scrapyard | Entered Materials 193 | -10/Materials | Discovered new exit (range 16) 205 | -10/Materials | Entered another Materials area 205 | -9/Materials | Evolved 2 slots: Propulsion x1, Utility x1 235 | -9/Materials | Central database locked down 495 | -9/Materials | Discovered new exit (range 5) 496 | -9/Materials | Entered Mines 497 | -9/Mines | Assembled infested the area 501 | -9/Mines | Escorted by a lone wolf Derelict 521 | -9/Mines | Learned location of Storage (-7) 521 | -9/Mines | Destroyed 8 combat bots 655 | -9/Mines | Discovered new exit (range 14) 707 | -9/Mines | Discovered new exit (range 12) 718 | -9/Mines | Build established: Scavenger-Mutant 730 | -9/Mines | Found a hidden stash of uninstalled traps 741 | -9/Mines | Deemed a non-threat by the Exiles lab entrance 742 | -9/Mines | Discovered new exit (range 5) 743 | -9/Mines | Entered Exiles 751 | -9/Exiles | Met 8R-AWN 757 | -9/Exiles | Met EX-HEX 772 | -9/Exiles | Learned location of Zion (-6) 786 | -9/Exiles | Discovered new exit (range 14) 790 | -9/Exiles | Entered Mines 816 | -8/Mines | Core integrity fell below 50% 856 | -8/Mines | Lost 3 parts (1p1n1w) 862 | -8/Mines | Discovered new exit (range 10) 915 | -8/Mines | Entered Materials 915 | -8/Materials | Evolved 2 slots: Propulsion x1, Utility x1 916 | -8/Materials | Identified exit to Factory 1000 | -8/Materials | Core integrity fell below 50% 1001 | -8/Materials | Lost 4 parts (3n1w) 1016 | -8/Materials | Core integrity fell below 20% 1021 | -8/Materials | Destroyed by G-47 Trooper with Particle Gun Last Messages --------------- 01005_ Flight Unit destroyed. 01005_ System corrupted by crushing effect (+5). 01007_ Critical hit (Burn: +37). 01010_ Hammer destroyed. 01010_ Mic. Nuclear Core destroyed. 01010_ System corrupted by crushing effect (+3). 01011_ Acquired 5 matter. 01011_ Sml. Storage Unit destroyed. 01011_ B-36 Bruiser destroyed. 01011_ Critical hit (Burn: +37). 01012_ Acquired 10 matter. 01014_ Acquired Lgt. Treads. 01015_ B-36 Bruiser suffers critical hit (Burn). 01016_ The unstable cave ceiling collapses. 01016_ Lgt. Assault Rifle+ destroyed. 01017_ G-47 Trooper destroyed. 01017_ Mni. Grenade Launcher destroyed. 01017_ Destroyed Mni. Grenade Launcher. 01021_ System corrupted: Lgt. Treads rejected. 01021_ Critical hit (Burn: +37). Map ----- +----------------------------------------------------+ | ?????????????????????????????????????????????????? | | ?????????????????????????????????????????????????? | | ?????????????????????????????????????????????????? | | ?????????????????????????????????????????????????? | | ?????????????????????????????????????????????????? | | ?????????????????????????????????????????????????? | | ?????????????????????????????????????????????????? | | ?????????????????????????????????????????????????? | | ?????????????????????????????????????????????????? | | ?????????????????????????????????????????????????? | | ?????????????????????????????????????????????????? | | ?????????????????????????????????????????????????? | | ?????????????????????????????????????????????????? | | ?????????????????????????????????????????????????? | | ?????????????????????????????????????????????????? | | ?????????????????????????????????????????????????? | | ????????????????????#????????????????????????????? | | ????????????????????# ???????????????????????????? | | ????????????????????# ???????????????????????????? | | ????????????????????# ??########????????????????? | | ????????????????????# ??#]]**!!#????????????????? | | ????????????????????# ?#]] !!#????????????????? | | ????????????????????# ?# #????????????????? | | ????????????????????# # ##????????????????? | | ????????????????????# # ##????????????????? | | ??????????????????#####; @ *! #????????????????? | | ??????????? gg b ##????????????????? | | ??????????????########## *[% #????????????????? | | ??????????????# ##[%g #????????????????? | | ??????????????# ## #????????????????? | | ??????????????# !!! ## #????????????????? | | ??????????????# !!! ## ###????????????????? | | ????????? ????# !!! #### #??????????????????? | | ????????? ????# ! #??# #??????????????????? | | ????????? ???##[ #??# #??????????????????? | | ????????# ???# ! #??# #??????????????????? | | ????????# ????# #??# #??????????????????? | | ??????### ##??#####+####### #??????????????????? | | ??????# ????# #??????????????????? | | ??????# ????# #??????????????????? | | ??????# T ????# """"""" #??????????????????? | | ??????# ????# """"""" #??????????????????? | | ??????? ????# """"""" #??????????????????? | | ???????# #????# """"""" #??????????????????? | | ???????# #????# """"""" #??????????????????? | | ???????# #????# #??????????????????? | | ???#???# #????# #??????????????????? | | ???# ### ###### """"" #??????????????????? | | ???# """"" #??????????????????? | | #### """"" #??????????????????? | +----------------------------------------------------+ Best States ------------- Heat Dissipation 31 Energy Generation 15 Energy Capacity 150 Matter Stores 300 Matter Capacity 300 Sight Range 16 Terrain Scan Range 16 Terrain Scan Density 10 Armor Coverage 150 Evasion (%) 63 Recoil Reduction 1 Item Schematics ----------------- None Robot Schematics ------------------ None Fabricated ------------ Nothing Repaired ---------- Nothing Studied --------- Lgt. Assault Rifle | -9/Materials | Hacked Alien Tech Used ----------------- None Achievements -------------- None Challenges ------------ None Game ------ Seed RiotAdvancedDoublenader Manual? 0 Play Time 00:16:41 Cumulative 201.8 hours Start 2026.09.21 @ 23:21:06 End 2026.09.21 @ 23:39:35 Sessions 1 Manual Loads 0 Difficulty Rogue Special Mode None Game No. 22 Rogue 6 Adventurer 2 Explorer 14 Win Type - Total 7 Types 4/0/1/0/0/0/0/0/0/2 Lore% 47 Gallery% 47 Achievement% 49 Wizard Run 0 Options --------- Layout 0 ASCII 0 Keyboard 0 Movement Mouse Keybinds 0 Fullscreen 1 Font 18/Cog Map View 76x50 Zoom Use 0% Tactical HUD 1 Map Filters NONE Filters NONE Steam 1 RUN: e34ee1c3-5752-44e8-87c0-45c4064de0dc